[Event "*** SCC Grand Prix: Titled Tuesday Blitz"]
[Site "Chess.com"]
[Date "2020.06.02"]
[Round "5"]
[White "TokChess"]
[Black "SophieNikoladze"]
[Result "1-0"]
[WhiteElo "2357"]
[BlackElo "2157"]
[TimeControl "180+1"]
[EndTime "10:57:14 PDT"]
[Termination "TokChess won by resignation"]

1. Nf3 {[%clk 0:03:00.9]} 1... d5 {[%clk 0:02:59.9]} 2. g3 {[%clk 0:02:55.3]}
2... Nf6 {[%clk 0:03:00]} 3. Bg2 {[%clk 0:02:55.6]} 3... b6 {[%clk 0:03:00.5]}
4. O-O {[%clk 0:02:55.7]} 4... Bb7 {[%clk 0:03:00.8]} 5. d4 {[%clk 0:02:56.2]}
5... e6 {[%clk 0:03:01.2]} 6. c4 {[%clk 0:02:54.2]} 6... Bd6 {[%clk 0:03:01.6]}
7. Nc3 {[%clk 0:02:54.4]} 7... a6 {[%clk 0:03:01.6]} 8. Ne5 {[%clk 0:02:52.2]}
8... O-O {[%clk 0:02:58.6]} 9. Bf4 {[%clk 0:02:50.8]} 9... Ne4 {[%clk
0:02:57.1]} 10. Rc1 {[%clk 0:02:45.9]} 10... f6 {[%clk 0:02:56.5]} 11. Nd3
{[%clk 0:02:44.8]} 11... dxc4 {[%clk 0:02:55.6]} 12. Nxe4 {[%clk 0:02:38.6]}
12... cxd3 {[%clk 0:02:51.3]} 13. Qxd3 {[%clk 0:02:26.7]} 13... Bxf4 {[%clk
0:02:51]} 14. gxf4 {[%clk 0:02:26.5]} 14... Bd5 {[%clk 0:02:49.1]} 15. Rc3
{[%clk 0:02:19.6]} 15... Nd7 {[%clk 0:02:48.4]} 16. Rfc1 {[%clk 0:02:18.1]}
16... Rc8 {[%clk 0:02:42.9]} 17. Qxa6 {[%clk 0:02:09.3]} 17... Ra8 {[%clk
0:02:40.7]} 18. Qd3 {[%clk 0:02:09]} 18... Rxa2 {[%clk 0:02:40.4]} 19. Rxc7
{[%clk 0:02:08.7]} 19... Rxb2 {[%clk 0:02:39.1]} 20. e3 {[%clk 0:02:02.7]} 20...
Qe8 {[%clk 0:02:31.1]} 21. Qc3 {[%clk 0:01:55.3]} 21... Rb3 {[%clk 0:02:29.2]}
22. Qc2 {[%clk 0:01:52.9]} 22... Nb8 {[%clk 0:02:22.2]} 23. Nc3 {[%clk
0:01:45.7]} 23... Bxg2 {[%clk 0:02:18.6]} 24. Kxg2 {[%clk 0:01:38.9]} 24... Ra3
{[%clk 0:02:18.3]} 25. Ne4 {[%clk 0:01:36.3]} 25... Ra5 {[%clk 0:02:17.2]} 26.
Ng3 {[%clk 0:01:35.8]} 26... Na6 {[%clk 0:02:10.6]} 27. Rb7 {[%clk 0:01:24.1]}
27... Qa8 {[%clk 0:02:05.1]} 28. Qe4 {[%clk 0:01:23.8]} 28... Kh8 {[%clk
0:01:52]} 29. Kg1 {[%clk 0:01:15.8]} 29... Rb5 {[%clk 0:01:49.5]} 30. Re7 {[%clk
0:01:06.4]} 30... Nb4 {[%clk 0:01:40.3]} 31. Qxa8 {[%clk 0:01:02.5]} 31... Rxa8
{[%clk 0:01:39.2]} 32. Rxe6 {[%clk 0:01:00.5]} 32... Nd3 {[%clk 0:01:39]} 33.
Rc3 {[%clk 0:00:46.2]} 33... Nb2 {[%clk 0:01:26.5]} 34. Kg2 {[%clk 0:00:42.6]}
34... Kg8 {[%clk 0:01:24]} 35. Re7 {[%clk 0:00:38.8]} 35... Kf8 {[%clk
0:01:16.6]} 36. Rcc7 {[%clk 0:00:38.2]} 36... Nd1 {[%clk 0:01:15.7]} 37. Rxg7
{[%clk 0:00:36.5]} 37... Ke8 {[%clk 0:01:15.2]} 38. Rxh7 {[%clk 0:00:35.8]}
38... Kd8 {[%clk 0:01:13.8]} 39. Rcg7 {[%clk 0:00:35.3]} 1-0

[Event "*** SCC Grand Prix: Titled Tuesday Blitz"]
[Site "Chess.com"]
[Date "2020.06.02"]
[Round "5"]
[White "Shubinkirill2003"]
[Black "Sanyura"]
[Result "1-0"]
[WhiteElo "2719"]
[BlackElo "2529"]
[TimeControl "180+1"]
[EndTime "10:57:15 PDT"]
[Termination "Shubinkirill2003 won on time"]

1. e4 {[%clk 0:03:00.9]} 1... c5 {[%clk 0:02:02.5]} 2. Nf3 {[%clk 0:02:58.5]}
2... e6 {[%clk 0:02:01.2]} 3. g3 {[%clk 0:02:58.5]} 3... Nc6 {[%clk 0:02:00.4]}
4. Bg2 {[%clk 0:02:58.3]} 4... d5 {[%clk 0:01:59.6]} 5. exd5 {[%clk 0:02:57.5]}
5... exd5 {[%clk 0:02:00.5]} 6. d4 {[%clk 0:02:57.8]} 6... Bd6 {[%clk
0:01:46.1]} 7. O-O {[%clk 0:02:48.9]} 7... Nge7 {[%clk 0:01:45.2]} 8. dxc5
{[%clk 0:02:43.2]} 8... Bxc5 {[%clk 0:01:44.8]} 9. Nbd2 {[%clk 0:02:43.4]} 9...
O-O {[%clk 0:01:43.2]} 10. Nb3 {[%clk 0:02:43.3]} 10... Bb6 {[%clk 0:01:42]} 11.
Nfd4 {[%clk 0:02:41.8]} 11... Nf5 {[%clk 0:01:31.4]} 12. Nxf5 {[%clk 0:02:18]}
12... Bxf5 {[%clk 0:01:32.3]} 13. c3 {[%clk 0:02:18.3]} 13... Be4 {[%clk
0:01:24.9]} 14. Bf4 {[%clk 0:02:04.7]} 14... Qf6 {[%clk 0:01:09.3]} 15. Qd2
{[%clk 0:01:52.4]} 15... Bxg2 {[%clk 0:01:04.1]} 16. Kxg2 {[%clk 0:01:53.3]}
16... d4 {[%clk 0:01:03.4]} 17. c4 {[%clk 0:01:52.9]} 17... Qe6 {[%clk
0:00:47.1]} 18. Rac1 {[%clk 0:01:43.3]} 18... Rfe8 {[%clk 0:00:46.3]} 19. Rfe1
{[%clk 0:01:34.5]} 19... Qf5 {[%clk 0:00:39.4]} 20. c5 {[%clk 0:01:29.8]} 20...
Qd5+ {[%clk 0:00:36.5]} 21. Kg1 {[%clk 0:01:26.1]} 21... Rxe1+ {[%clk
0:00:03.8]} 22. Qxe1 {[%clk 0:01:27]} 22... d3 {[%clk 0:00:02.9]} 23. cxb6
{[%clk 0:01:24.5]} 23... g5 {[%clk 0:00:02.4]} 24. Rc5 {[%clk 0:01:14.8]} 24...
Qd7 {[%clk 0:00:01.6]} 25. Rxg5+ {[%clk 0:01:11]} 25... Kf8 {[%clk 0:00:01.6]}
26. Qc3 {[%clk 0:01:07.1]} 1-0

[Event "*** SCC Grand Prix: Titled Tuesday Blitz"]
[Site "Chess.com"]
[Date "2020.06.02"]
[Round "5"]
[White "Roza_Idrisova"]
[Black "51616516516"]
[Result "0-1"]
[WhiteElo "2169"]
[BlackElo "2372"]
[TimeControl "180+1"]
[EndTime "10:57:15 PDT"]
[Termination "51616516516 won by resignation"]

1. d4 {[%clk 0:03:00.9]} 1... Nf6 {[%clk 0:02:59.4]} 2. Nf3 {[%clk 0:03:00.3]}
2... g6 {[%clk 0:02:58.4]} 3. c4 {[%clk 0:03:00]} 3... Bg7 {[%clk 0:02:58.5]} 4.
Nc3 {[%clk 0:03:00.6]} 4... d6 {[%clk 0:02:58.9]} 5. e4 {[%clk 0:03:01.1]} 5...
O-O {[%clk 0:02:59.5]} 6. Be2 {[%clk 0:03:01.6]} 6... e5 {[%clk 0:03:00]} 7. O-O
{[%clk 0:03:01.6]} 7... Nc6 {[%clk 0:03:00.2]} 8. d5 {[%clk 0:03:01.7]} 8... Ne7
{[%clk 0:03:00.8]} 9. b4 {[%clk 0:03:02.1]} 9... Nh5 {[%clk 0:02:57.3]} 10. g3
{[%clk 0:03:01.1]} 10... f5 {[%clk 0:02:45.1]} 11. c5 {[%clk 0:02:56.1]} 11...
h6 {[%clk 0:02:07.3]} 12. cxd6 {[%clk 0:02:55.2]} 12... cxd6 {[%clk 0:02:06.9]}
13. Nh4 {[%clk 0:02:51.7]} 13... Nf6 {[%clk 0:02:03.6]} 14. Bf3 {[%clk
0:02:23.9]} 14... fxe4 {[%clk 0:01:43.5]} 15. Nxe4 {[%clk 0:02:09.7]} 15... g5
{[%clk 0:01:43.3]} 16. Nxf6+ {[%clk 0:02:02.4]} 16... Bxf6 {[%clk 0:01:42.9]}
17. Ng2 {[%clk 0:02:00.8]} 17... e4 {[%clk 0:01:42.9]} 18. Bxe4 {[%clk 0:01:53]}
18... Bxa1 {[%clk 0:01:40.2]} 19. Bxg5 {[%clk 0:01:34.1]} 19... Bg7 {[%clk
0:01:39.8]} 20. Bf4 {[%clk 0:01:29.4]} 20... Nf5 {[%clk 0:01:32.5]} 21. Qh5
{[%clk 0:01:19.2]} 21... Qe8 {[%clk 0:01:28.4]} 22. Qf3 {[%clk 0:01:10.6]} 22...
Nd4 {[%clk 0:01:26.3]} 23. Qd3 {[%clk 0:01:06.2]} 23... Bf5 {[%clk 0:01:24.7]}
24. Bxf5 {[%clk 0:00:56.1]} 24... Nxf5 {[%clk 0:01:25.6]} 25. Re1 {[%clk
0:00:50.5]} 25... Qf7 {[%clk 0:01:24.5]} 26. Re6 {[%clk 0:00:42.6]} 26... Rae8
{[%clk 0:01:22.2]} 27. Qe4 {[%clk 0:00:28.3]} 27... Nd4 {[%clk 0:01:17.1]} 28.
Rxe8 {[%clk 0:00:25.3]} 28... Rxe8 {[%clk 0:01:18]} 29. Qd3 {[%clk 0:00:21.3]}
29... Qxd5 {[%clk 0:01:13]} 30. h4 {[%clk 0:00:15.8]} 30... Nf3+ {[%clk
0:01:10.1]} 0-1

[Event "*** SCC Grand Prix: Titled Tuesday Blitz"]
[Site "Chess.com"]
[Date "2020.06.02"]
[Round "5"]
[White "swimmerchess"]
[Black "DeGrootteZ"]
[Result "1-0"]
[WhiteElo "2825"]
[BlackElo "2622"]
[TimeControl "180+1"]
[EndTime "10:57:18 PDT"]
[Termination "swimmerchess won by resignation"]

1. e4 {[%clk 0:03:00.9]} 1... c5 {[%clk 0:02:59.5]} 2. Nf3 {[%clk 0:03:00.1]}
2... d6 {[%clk 0:02:59.8]} 3. d4 {[%clk 0:03:00]} 3... cxd4 {[%clk 0:03:00.7]}
4. Nxd4 {[%clk 0:03:00.9]} 4... Nf6 {[%clk 0:03:01.3]} 5. Nc3 {[%clk 0:03:01.5]}
5... a6 {[%clk 0:03:00]} 6. Bg5 {[%clk 0:03:02]} 6... Nc6 {[%clk 0:02:59.5]} 7.
f4 {[%clk 0:02:59.6]} 7... Qb6 {[%clk 0:02:51.2]} 8. Nb3 {[%clk 0:02:55.8]} 8...
e6 {[%clk 0:02:46.7]} 9. Qe2 {[%clk 0:02:40.8]} 9... Be7 {[%clk 0:02:44.3]} 10.
O-O-O {[%clk 0:02:38.4]} 10... Qc7 {[%clk 0:02:39.2]} 11. g4 {[%clk 0:02:33.2]}
11... b5 {[%clk 0:02:37]} 12. a3 {[%clk 0:02:31.6]} 12... Rb8 {[%clk 0:02:36.2]}
13. Bg2 {[%clk 0:02:31.4]} 13... b4 {[%clk 0:02:36.2]} 14. axb4 {[%clk
0:02:29.4]} 14... Rxb4 {[%clk 0:02:26.2]} 15. Rhe1 {[%clk 0:02:29.2]} 15... O-O
{[%clk 0:02:20]} 16. Kb1 {[%clk 0:02:14]} 16... a5 {[%clk 0:02:16.2]} 17. e5
{[%clk 0:02:13.8]} 17... dxe5 {[%clk 0:02:10.4]} 18. Bxc6 {[%clk 0:02:12.4]}
18... exf4 {[%clk 0:01:50.3]} 19. Ba4 {[%clk 0:02:01]} 19... Bb7 {[%clk
0:01:33.2]} 20. Rd4 {[%clk 0:01:55.9]} 20... f3 {[%clk 0:01:12.7]} 21. Qd2
{[%clk 0:01:45.9]} 21... Nxg4 {[%clk 0:00:51]} 22. Rd7 {[%clk 0:01:41.9]} 22...
Bxg5 {[%clk 0:00:48.9]} 23. Qxg5 {[%clk 0:01:42.8]} 23... Qb6 {[%clk 0:00:42]}
24. h3 {[%clk 0:01:29.3]} 24... f2 {[%clk 0:00:36.5]} 25. Rf1 {[%clk 0:01:14.9]}
25... Nh2 {[%clk 0:00:24.8]} 26. Rxb7 {[%clk 0:01:14.5]} 26... Nxf1 {[%clk
0:00:17.7]} 27. Rxb6 {[%clk 0:01:14.1]} 27... Nh2 {[%clk 0:00:15.8]} 28. Bb5
{[%clk 0:01:05.8]} 28... Rxb5 {[%clk 0:00:14.2]} 29. Qxb5 {[%clk 0:01:05]} 29...
h5 {[%clk 0:00:12.4]} 1-0

[Event "*** SCC Grand Prix: Titled Tuesday Blitz"]
[Site "Chess.com"]
[Date "2020.06.02"]
[Round "5"]
[White "WeAintSurePal"]
[Black "Mikedannnn"]
[Result "1-0"]
[WhiteElo "2265"]
[BlackElo "2446"]
[TimeControl "180+1"]
[EndTime "10:57:18 PDT"]
[Termination "WeAintSurePal won by checkmate"]

1. d4 {[%clk 0:03:00.9]} 1... Nf6 {[%clk 0:02:58.3]} 2. c4 {[%clk 0:03:00.6]}
2... c5 {[%clk 0:02:55.7]} 3. d5 {[%clk 0:02:59.9]} 3... e6 {[%clk 0:02:55.9]}
4. Nc3 {[%clk 0:02:59.4]} 4... exd5 {[%clk 0:02:56.4]} 5. cxd5 {[%clk
0:03:00.3]} 5... Bd6 {[%clk 0:02:56.6]} 6. Nf3 {[%clk 0:02:53.3]} 6... O-O
{[%clk 0:02:56.3]} 7. g3 {[%clk 0:02:50]} 7... Re8 {[%clk 0:02:56.6]} 8. Bg2
{[%clk 0:02:49.7]} 8... Bc7 {[%clk 0:02:57.2]} 9. O-O {[%clk 0:02:50.1]} 9... d6
{[%clk 0:02:57.8]} 10. a4 {[%clk 0:02:46.4]} 10... a6 {[%clk 0:02:57.6]} 11. h3
{[%clk 0:02:45.6]} 11... Nbd7 {[%clk 0:02:57.4]} 12. Bf4 {[%clk 0:02:27.4]}
12... Rb8 {[%clk 0:02:56]} 13. Qd3 {[%clk 0:02:17.1]} 13... Nf8 {[%clk 0:02:53]}
14. e4 {[%clk 0:02:04.9]} 14... Ng6 {[%clk 0:02:51.5]} 15. Bd2 {[%clk
0:01:50.4]} 15... Bd7 {[%clk 0:02:51.1]} 16. Rfe1 {[%clk 0:01:42]} 16... b5
{[%clk 0:02:50.6]} 17. axb5 {[%clk 0:01:42.9]} 17... axb5 {[%clk 0:02:51.2]} 18.
e5 {[%clk 0:01:24.6]} 18... dxe5 {[%clk 0:02:46.1]} 19. d6 {[%clk 0:01:22.4]}
19... Bb6 {[%clk 0:02:46]} 20. Bg5 {[%clk 0:01:21.7]} 20... c4 {[%clk
0:02:39.2]} 21. Qd2 {[%clk 0:01:18.5]} 21... h6 {[%clk 0:02:30.7]} 22. Bxf6
{[%clk 0:01:17.3]} 22... Qxf6 {[%clk 0:02:29.9]} 23. Rad1 {[%clk 0:01:05.3]}
23... Qe6 {[%clk 0:02:12.3]} 24. Nd5 {[%clk 0:00:58.2]} 24... Bc6 {[%clk
0:01:49.1]} 25. Nxb6 {[%clk 0:00:48.2]} 25... Rxb6 {[%clk 0:01:47.7]} 26. Nd4
{[%clk 0:00:46.4]} 26... Qxd6 {[%clk 0:01:36.1]} 27. Nxc6 {[%clk 0:00:39.2]}
27... Qxd2 {[%clk 0:01:36.1]} 28. Rxd2 {[%clk 0:00:40.1]} 28... Nf8 {[%clk
0:01:27.5]} 29. Rxe5 {[%clk 0:00:26.6]} 29... Ne6 {[%clk 0:01:19.7]} 30. Bd5
{[%clk 0:00:19]} 30... Kf8 {[%clk 0:01:19]} 31. Rde2 {[%clk 0:00:17.9]} 31... b4
{[%clk 0:01:15.6]} 32. Bxe6 {[%clk 0:00:17.6]} 32... Rxc6 {[%clk 0:01:14.3]} 33.
Bd7 {[%clk 0:00:17.9]} 33... Rxe5 {[%clk 0:01:09]} 34. Rxe5 {[%clk 0:00:18.8]}
34... Rd6 {[%clk 0:01:09.5]} 35. Re8# {[%clk 0:00:18.5]} 1-0

[Event "*** SCC Grand Prix: Titled Tuesday Blitz"]
[Site "Chess.com"]
[Date "2020.06.02"]
[Round "5"]
[White "HarutyunianTigranK"]
[Black "chessplayer9919"]
[Result "0-1"]
[WhiteElo "2699"]
[BlackElo "2521"]
[TimeControl "180+1"]
[EndTime "10:57:19 PDT"]
[Termination "chessplayer9919 won by resignation"]

1. c4 {[%clk 0:03:00.8]} 1... e5 {[%clk 0:02:57.4]} 2. Nc3 {[%clk 0:03:01.1]}
2... Nf6 {[%clk 0:02:57.2]} 3. Nf3 {[%clk 0:03:01]} 3... Nc6 {[%clk 0:02:57.2]}
4. e4 {[%clk 0:03:01.3]} 4... Bb4 {[%clk 0:02:51.9]} 5. d3 {[%clk 0:03:01]} 5...
O-O {[%clk 0:02:51.3]} 6. g3 {[%clk 0:02:57]} 6... d6 {[%clk 0:02:48.5]} 7. Bg2
{[%clk 0:02:57.1]} 7... Nd4 {[%clk 0:02:44.8]} 8. h3 {[%clk 0:02:50.8]} 8... c6
{[%clk 0:02:32.1]} 9. O-O {[%clk 0:02:50.3]} 9... Nxf3+ {[%clk 0:02:27.4]} 10.
Qxf3 {[%clk 0:02:51.2]} 10... h6 {[%clk 0:02:27.3]} 11. a3 {[%clk 0:02:47.6]}
11... Ba5 {[%clk 0:02:27.1]} 12. b4 {[%clk 0:02:46.9]} 12... Bc7 {[%clk
0:02:27.4]} 13. Bb2 {[%clk 0:02:46]} 13... Be6 {[%clk 0:02:27.5]} 14. Rad1
{[%clk 0:02:43.7]} 14... Nh7 {[%clk 0:02:26.2]} 15. Qe2 {[%clk 0:02:41.9]} 15...
Qd7 {[%clk 0:02:25.8]} 16. Kh2 {[%clk 0:02:39.3]} 16... f5 {[%clk 0:02:17.9]}
17. exf5 {[%clk 0:02:37.9]} 17... Bxf5 {[%clk 0:02:18.8]} 18. d4 {[%clk
0:02:36.6]} 18... exd4 {[%clk 0:02:16.2]} 19. Rxd4 {[%clk 0:02:35.5]} 19... Rae8
{[%clk 0:02:16.4]} 20. Qd1 {[%clk 0:02:32.4]} 20... Ng5 {[%clk 0:02:12.7]} 21.
h4 {[%clk 0:02:29.9]} 21... Nf7 {[%clk 0:02:06.1]} 22. Ne4 {[%clk 0:02:17]}
22... Qe6 {[%clk 0:01:43.7]} 23. Nd2 {[%clk 0:01:47.7]} 23... Bb6 {[%clk
0:01:37.8]} 24. Rf4 {[%clk 0:01:43.3]} 24... Bd3 {[%clk 0:01:34.4]} 25. Rh1
{[%clk 0:01:32.3]} 25... Ne5 {[%clk 0:01:31.7]} 26. c5 {[%clk 0:01:09]} 26...
dxc5 {[%clk 0:01:16]} 27. Rxf8+ {[%clk 0:00:57.3]} 27... Rxf8 {[%clk 0:01:14.8]}
28. bxc5 {[%clk 0:00:57.5]} 28... Ng4+ {[%clk 0:01:06.9]} 29. Kg1 {[%clk
0:00:56.6]} 29... Bxc5 {[%clk 0:01:06.5]} 30. Bh3 {[%clk 0:00:38.5]} 30... Bxf2+
{[%clk 0:01:01.6]} 31. Kg2 {[%clk 0:00:38.8]} 31... Qd5+ {[%clk 0:00:57.1]} 32.
Nf3 {[%clk 0:00:38.2]} 32... Ne3+ {[%clk 0:00:56.9]} 33. Kxf2 {[%clk 0:00:37.4]}
33... Nxd1+ {[%clk 0:00:57.3]} 0-1

[Event "*** SCC Grand Prix: Titled Tuesday Blitz"]
[Site "Chess.com"]
[Date "2020.06.02"]
[Round "5"]
[White "Sunnika"]
[Black "IwkooO"]
[Result "0-1"]
[WhiteElo "2396"]
[BlackElo "2566"]
[TimeControl "180+1"]
[EndTime "10:57:19 PDT"]
[Termination "IwkooO won on time"]

1. d4 {[%clk 0:03:00.1]} 1... Nf6 {[%clk 0:02:59.1]} 2. Nf3 {[%clk 0:02:59.7]}
2... e6 {[%clk 0:02:58.9]} 3. c4 {[%clk 0:02:58.9]} 3... c5 {[%clk 0:02:59.3]}
4. d5 {[%clk 0:02:58.7]} 4... b5 {[%clk 0:02:59.1]} 5. dxe6 {[%clk 0:02:58]}
5... fxe6 {[%clk 0:03:00]} 6. cxb5 {[%clk 0:02:56.8]} 6... d5 {[%clk 0:03:00.6]}
7. Bf4 {[%clk 0:02:55.4]} 7... a6 {[%clk 0:02:53.3]} 8. e3 {[%clk 0:02:53.9]}
8... Bd6 {[%clk 0:02:50.2]} 9. Nc3 {[%clk 0:02:48.4]} 9... Bxf4 {[%clk
0:02:39.6]} 10. exf4 {[%clk 0:02:48.3]} 10... d4 {[%clk 0:02:40.1]} 11. Nb1
{[%clk 0:02:40.2]} 11... O-O {[%clk 0:02:39.2]} 12. bxa6 {[%clk 0:02:39.4]}
12... Nxa6 {[%clk 0:02:32.6]} 13. Bc4 {[%clk 0:02:33.7]} 13... Qd6 {[%clk
0:02:29.6]} 14. g3 {[%clk 0:02:30.4]} 14... Bb7 {[%clk 0:02:26.1]} 15. O-O
{[%clk 0:02:29.2]} 15... Qc6 {[%clk 0:02:21.7]} 16. Nbd2 {[%clk 0:02:27.5]}
16... Ne4 {[%clk 0:01:53.4]} 17. Nxe4 {[%clk 0:01:28.7]} 17... Qxe4 {[%clk
0:01:53.2]} 18. Be2 {[%clk 0:01:11.8]} 18... d3 {[%clk 0:01:52.5]} 19. Qxd3
{[%clk 0:01:02.7]} 19... Qxd3 {[%clk 0:01:52.8]} 20. Bxd3 {[%clk 0:01:03.6]}
20... Bxf3 {[%clk 0:01:53.1]} 21. Rfe1 {[%clk 0:01:04.1]} 21... Bd5 {[%clk
0:01:42.4]} 22. a3 {[%clk 0:01:02.9]} 22... c4 {[%clk 0:01:42.8]} 23. Be4 {[%clk
0:00:54.8]} 23... Nc5 {[%clk 0:01:42.5]} 24. Bc2 {[%clk 0:00:51.1]} 24... Rfb8
{[%clk 0:01:39]} 25. Rab1 {[%clk 0:00:50.4]} 25... g6 {[%clk 0:01:37.1]} 26. h3
{[%clk 0:00:47.5]} 26... Rb6 {[%clk 0:01:35.2]} 27. Re2 {[%clk 0:00:14.2]} 27...
Rab8 {[%clk 0:01:27]} 28. Bd1 {[%clk 0:00:14.4]} 28... Nd3 {[%clk 0:01:26.9]}
29. b4 {[%clk 0:00:03.7]} 29... cxb3 {[%clk 0:01:24.4]} 30. Rd2 {[%clk
0:00:04.2]} 30... Nc5 {[%clk 0:01:23]} 31. f3 {[%clk 0:00:03]} 31... b2 {[%clk
0:01:20.1]} 32. Kf2 {[%clk 0:00:02.7]} 32... Ba2 {[%clk 0:01:20.1]} 0-1

[Event "*** SCC Grand Prix: Titled Tuesday Blitz"]
[Site "Chess.com"]
[Date "2020.06.02"]
[Round "5"]
[White "SaqoChess_Twitch"]
[Black "PauloCesarCosta_sad"]
[Result "1-0"]
[WhiteElo "2402"]
[BlackElo "2187"]
[TimeControl "180+1"]
[EndTime "10:57:21 PDT"]
[Termination "SaqoChess_Twitch won on time"]

1. d4 {[%clk 0:02:57.7]} 1... d5 {[%clk 0:02:59]} 2. c4 {[%clk 0:02:58.6]} 2...
c6 {[%clk 0:02:58.2]} 3. Nc3 {[%clk 0:02:58.2]} 3... e6 {[%clk 0:02:58.2]} 4. e3
{[%clk 0:02:57.9]} 4... Nd7 {[%clk 0:02:55.7]} 5. Nf3 {[%clk 0:02:58.3]} 5...
Ngf6 {[%clk 0:02:56]} 6. Bd3 {[%clk 0:02:58]} 6... Bd6 {[%clk 0:02:55.6]} 7. O-O
{[%clk 0:02:47.9]} 7... O-O {[%clk 0:02:53.9]} 8. e4 {[%clk 0:02:34.2]} 8...
dxe4 {[%clk 0:02:52.6]} 9. Nxe4 {[%clk 0:02:28.8]} 9... Nxe4 {[%clk 0:02:51.1]}
10. Bxe4 {[%clk 0:02:29.7]} 10... e5 {[%clk 0:02:25.4]} 11. dxe5 {[%clk
0:02:27.8]} 11... Nxe5 {[%clk 0:02:22.8]} 12. Nxe5 {[%clk 0:02:27.5]} 12... Bxe5
{[%clk 0:02:13.6]} 13. Bxh7+ {[%clk 0:02:26.5]} 13... Kxh7 {[%clk 0:02:13.7]}
14. Qh5+ {[%clk 0:02:27.2]} 14... Kg8 {[%clk 0:02:13.8]} 15. Qxe5 {[%clk
0:02:28.1]} 15... Re8 {[%clk 0:02:05.3]} 16. Qc3 {[%clk 0:02:25.1]} 16... Bf5
{[%clk 0:02:01.9]} 17. b3 {[%clk 0:02:24.4]} 17... Qd3 {[%clk 0:01:49.7]} 18.
Bb2 {[%clk 0:02:24.5]} 18... Qxc3 {[%clk 0:01:39.9]} 19. Bxc3 {[%clk 0:02:25.4]}
19... Re2 {[%clk 0:01:40.2]} 20. Rfe1 {[%clk 0:02:25.3]} 20... Rae8 {[%clk
0:01:33.7]} 21. f3 {[%clk 0:02:19.9]} 21... c5 {[%clk 0:01:12.1]} 22. a3 {[%clk
0:02:11.3]} 22... Bc2 {[%clk 0:01:05.8]} 23. b4 {[%clk 0:02:11]} 23... Bb3
{[%clk 0:00:48.7]} 24. bxc5 {[%clk 0:02:10.2]} 24... Bxc4 {[%clk 0:00:31.1]} 25.
Rab1 {[%clk 0:02:08.7]} 25... Rxe1+ {[%clk 0:00:23.4]} 26. Rxe1 {[%clk
0:02:09.6]} 26... Rxe1+ {[%clk 0:00:09]} 27. Bxe1 {[%clk 0:02:10.5]} 27... f6
{[%clk 0:00:09.4]} 28. Kf2 {[%clk 0:02:10.2]} 28... Kf7 {[%clk 0:00:09.7]} 29.
Ke3 {[%clk 0:02:10.8]} 29... Ke6 {[%clk 0:00:10.1]} 30. Kd4 {[%clk 0:02:11.3]}
30... Bb5 {[%clk 0:00:09.6]} 31. g3 {[%clk 0:02:10.2]} 31... Bc6 {[%clk
0:00:09.7]} 32. Bd2 {[%clk 0:02:10.4]} 32... a6 {[%clk 0:00:09.9]} 33. f4 {[%clk
0:02:08.4]} 33... Bb5 {[%clk 0:00:09.5]} 34. Ba5 {[%clk 0:02:07.8]} 34... Bc6
{[%clk 0:00:07.7]} 35. Bc7 {[%clk 0:02:08.1]} 35... Bb5 {[%clk 0:00:07.4]} 36.
Bd6 {[%clk 0:02:08.5]} 36... Bc6 {[%clk 0:00:07.4]} 37. h4 {[%clk 0:02:07.1]}
37... Bf3 {[%clk 0:00:07]} 38. Ke3 {[%clk 0:02:05.6]} 38... Bc6 {[%clk
0:00:05.8]} 39. g4 {[%clk 0:02:04.7]} 39... g6 {[%clk 0:00:04.9]} 40. h5 {[%clk
0:02:03.9]} 40... gxh5 {[%clk 0:00:04.7]} 41. gxh5 {[%clk 0:02:04.8]} 41... Kf5
{[%clk 0:00:04]} 42. Be7 {[%clk 0:02:03.8]} 42... Be8 {[%clk 0:00:01.7]} 43. h6
{[%clk 0:02:02.1]} 43... Kg6 {[%clk 0:00:01.8]} 44. Bf8 {[%clk 0:01:58.3]} 44...
f5 {[%clk 0:00:01.2]} 45. Kd4 {[%clk 0:01:58.5]} 1-0

[Event "*** SCC Grand Prix: Titled Tuesday Blitz"]
[Site "Chess.com"]
[Date "2020.06.02"]
[Round "5"]
[White "marszach123"]
[Black "AshotParvanyan"]
[Result "0-1"]
[WhiteElo "2144"]
[BlackElo "2414"]
[TimeControl "180+1"]
[EndTime "10:57:22 PDT"]
[Termination "AshotParvanyan won by checkmate"]

1. e4 {[%clk 0:03:00.9]} 1... e6 {[%clk 0:02:59.5]} 2. d4 {[%clk 0:02:59.4]}
2... d5 {[%clk 0:02:59.6]} 3. Nc3 {[%clk 0:02:59.1]} 3... Bb4 {[%clk 0:02:57.8]}
4. e5 {[%clk 0:02:58.7]} 4... Ne7 {[%clk 0:02:56]} 5. a3 {[%clk 0:02:58.6]} 5...
Bxc3+ {[%clk 0:02:56.2]} 6. bxc3 {[%clk 0:02:59.1]} 6... c5 {[%clk 0:02:57]} 7.
h4 {[%clk 0:02:54.9]} 7... Qc7 {[%clk 0:02:55.7]} 8. Nf3 {[%clk 0:02:50.4]} 8...
b6 {[%clk 0:02:53.2]} 9. Bb5+ {[%clk 0:02:49]} 9... Bd7 {[%clk 0:02:52.1]} 10.
Bd3 {[%clk 0:02:46.2]} 10... c4 {[%clk 0:02:52.1]} 11. Be2 {[%clk 0:02:45.4]}
11... Ba4 {[%clk 0:02:52.5]} 12. h5 {[%clk 0:02:40.7]} 12... h6 {[%clk
0:02:52.4]} 13. g4 {[%clk 0:02:24.9]} 13... Kd7 {[%clk 0:02:47.3]} 14. Nh4
{[%clk 0:02:20.4]} 14... Nbc6 {[%clk 0:02:31]} 15. f4 {[%clk 0:02:20]} 15... g6
{[%clk 0:02:31]} 16. hxg6 {[%clk 0:02:17.5]} 16... fxg6 {[%clk 0:02:31.9]} 17.
Be3 {[%clk 0:02:12.4]} 17... Raf8 {[%clk 0:02:28.5]} 18. Kd2 {[%clk 0:02:08.6]}
18... Kc8 {[%clk 0:02:27.1]} 19. Qg1 {[%clk 0:02:01.6]} 19... Kb7 {[%clk
0:02:21.3]} 20. Rf1 {[%clk 0:01:59.2]} 20... b5 {[%clk 0:02:10.2]} 21. Qg3
{[%clk 0:01:29.9]} 21... a5 {[%clk 0:02:09.7]} 22. Qh3 {[%clk 0:01:29.3]} 22...
Qd7 {[%clk 0:01:42.8]} 23. Rf2 {[%clk 0:01:18]} 23... Kc7 {[%clk 0:01:36.8]} 24.
Rhf1 {[%clk 0:01:17.3]} 24... b4 {[%clk 0:01:36]} 25. axb4 {[%clk 0:01:16.5]}
25... axb4 {[%clk 0:01:36.9]} 26. Ra1 {[%clk 0:01:07.2]} 26... bxc3+ {[%clk
0:01:35.3]} 27. Kxc3 {[%clk 0:01:06.8]} 27... Ra8 {[%clk 0:01:27.7]} 28. f5
{[%clk 0:01:04.1]} 28... Bxc2 {[%clk 0:01:02.1]} 29. Kxc2 {[%clk 0:01:03.5]}
29... Rxa1 {[%clk 0:01:00.7]} 30. fxe6 {[%clk 0:00:56.1]} 30... Nb4+ {[%clk
0:00:57.4]} 31. Kb2 {[%clk 0:00:46.1]} 31... Qa4 {[%clk 0:00:57]} 32. Bd1 {[%clk
0:00:25.8]} 32... Qa3# {[%clk 0:00:52]} 0-1